Cogmind - Beta 14 @@@ ROGUE MODE // 2025.05.01 @ 20:09:39 Player: Rzcen Result: Destroyed by G-47 Trooper with Particle Gun Performance ------------- Evolutions (2) 1000 Regions Visited (6) 1200 Robots Destroyed (86) 430 Value Destroyed (3232) 3232 Prototype IDs (33) 660 Alien Tech Used (0) 0 Bonus (576) 576 TOTAL SCORE: 7098 Bonus ------- High Alert Combat Kills 429 Follower Combat Kills 268 Friendly Fire -121 Cogmind --------- Core Integrity 0/550 Matter 60/300 Energy 99/100 System Corruption 1% Temperature Cool (27) Movement Core (150) Ox2 Location -8/Storage Parts ------- > --- POWER (1) -------- (None) > --- PROPULSION (4) --- (None) > --- UTILITY (4) ------ (None) > --- WEAPON (2) ------- Field Lobotomy Kit > --- INVENTORY (5) ---- Heavy Particle Gun Advanced Beam Rifle Flak Cannon Datajack Peak State ------------ > --- POWER ------------ Improved Ion Engine > --- PROPULSION ------- Light Treads Advanced Treads Advanced Treads Advanced Treads > --- UTILITY ---------- Large Storage Unit Experimental Sensor Array Signal Interpreter Hardened Light Armor Plating > --- WEAPON ----------- Medium Laser Heavy Assault Rifle > --- INVENTORY -------- Improved Ion Engine Light Treads Light Treads Light Treads Medium Storage Unit Improved Terrain Scan Processor Advanced Targeting Computer Light Armor Plating Light Armor Plating System Shield Assault Rifle Grenade Launcher Datajack Field Lobotomy Kit [Rating: 31] Favorites ----------- Power Ion Engine Engine Ion Engine Power Core Light Nuclear Core Propulsion Light Treads Treads Light Treads Utility Large Storage Unit Device Sensor Array Storage Large Storage Unit Processor Signal Interpreter Protection Hardened Light Armor Plating Weapon Assault Rifle Energy Gun Medium Laser Ballistic Gun Assault Rifle Ballistic Cannon Flak Cannon Launcher Missile Launcher Special Weapon Field Lobotomy Kit Special Melee Weapon Datajack Build | -11 -10 -10 -10 -9 -8 -8 ------- Run | Yrd Mat Min Exi Min Mat Sto Slots Evolved 4 | . . . . . 4 . Power . | . . . . . . . Propulsion 2 | . . . . . 2 . Utility 2 | . . . . . 2 . Weapon . | . . . . . . . Parts Attached 75 | 6 7 . 4 2 29 27 Power 11 | 1 2 . . 1 3 4 Engine 7 | 1 2 . . 1 2 1 Core 4 | . . . . . 1 3 Reactor . | . . . . . . . Propulsion 19 | 2 1 . . . 9 7 Treads 19 | 2 1 . . . 9 7 Leg . | . . . . . . . Wheel . | . . . . . . . Hover . | . . . . . . . Flight . | . . . . . . . Utility 18 | 1 3 . . . 8 6 Device 3 | . 1 . . . 1 1 Storage 6 | 1 2 . . . 2 1 Processor 2 | . . . . . 2 . Hackware . | . . . . . . . Protection 7 | . . . . . 3 4 Artifact . | . . . . . . . Weapon 27 | 2 1 . 4 1 9 10 Energy Gun 5 | 1 . . 1 1 2 . Energy Cannon . | . . . . . . . Ballistic Gun 7 | 1 1 . 2 . 2 1 Ballistic Cannon 6 | . . . . . 3 3 Launcher 6 | . . . . . 2 4 Special Weapon 2 | . . . . . . 2 Impact Weapon . | . . . . . . . Slashing Weapon . | . . . . . . . Piercing Weapon . | . . . . . . . Special Melee Weapon 1 | . . . 1 . . . Unidentified Prototypes 2 | . . . . . 1 1 Parts Lost 23 | . . . . . 3 20 Power 3 | . . . . . 1 2 Propulsion 10 | . . . . . 1 9 Utility 6 | . . . . . 1 5 Weapon 4 | . . . . . . 4 Highest Loss Streak 8 | . . . . . 2 8 To Critical Strikes . | . . . . . . . Average Slot Usage (%) 97 | . 92 100 100 100 97 91 Engine 10 | . 13 14 14 14 7 2 Core 1 | . . . . . . 6 Treads 29 | . 27 28 28 28 35 30 Device 9 | . 7 14 14 14 4 3 Storage 12 | . 14 14 14 14 9 9 Processor 4 | . . . . . 12 11 Protection 3 | . . . . . 9 10 Energy Gun 4 | . 3 . 2 14 4 . Ballistic Gun 15 | . 23 28 18 14 6 4 Ballistic Cannon 2 | . . . . . 6 10 Special Melee Weapon 1 | . . . 6 . . . Peak Build Rating 31 | 6 7 8 9 11 31 29 Average Rating 14 | 4 6 7 8 10 26 24 On Entrance 9 | . 6 7 8 9 11 27 Naked Turns . | . . . . . . . Heaviest Build 111 | 12 30 30 30 35 44 111 Greatest Support 90 | 40 40 40 40 40 86 90 Greatest Overweight (x) 36 | 1 . . . . . 36 Average Overweight (x) . | . . . . . . . Largest Inventory Capacity 35 | 8 15 15 15 15 35 25 Average Capacity 15 | 6 10 15 15 15 15 19 Most Carried 23 | 5 9 10 15 15 15 23 Average Carried 12 | 2 4 9 14 14 14 16 Final Capacity 15 | 8 15 15 15 15 15 5 Final Carried 15 | 2 9 10 15 15 15 4 Class Distribution -------------------- 78% | Mutant 14% | Scavenger-Mutant 7% | Commander-Mutant Dominant Class ---------------- Mutant | -10/Materials Mutant | -10/Mines Mutant | -10/Exiles Mutant | -9/Mines Mutant | -8/Materials Scavenger-Mutant | -8/Storage Resources | -11 -10 -10 -10 -9 -8 -8 ----------- Run | Yrd Mat Min Exi Min Mat Sto Matter Collected 2501 | 171 354 30 52 56 925 913 Remotely . | . . . . . . . Salvage Created 2580 | . 476 30 97 127 838 1012 Parts 133 | . 36 1 5 8 41 42 Haulers Intercepted . | . . . . . . . Recyclers Shooed 5 | . . . . . 2 3 Parts Field Recycled . | . . . . . . . Retrieved Matter . | . . . . . . . Parts Self-Destructed . | . . . . . . . Prevented . | . . . . . . . Kills | -11 -10 -10 -10 -9 -8 -8 ------- Run | Yrd Mat Min Exi Min Mat Sto Combat Hostiles Destroyed 67 | . 14 . . 4 22 27 Guns 31 | . 14 . . 4 7 6 Cannons 22 | . . . . . 11 11 AOE 14 | . . . . . 4 10 Classes Destroyed 13 | . 3 1 . . 5 4 Worker 3 | . . . . . 1 2 Builder 2 | . . . . . 2 . Tunneler 1 | . . 1 . . . . Recycler 2 | . . . . . . 2 Mechanic 2 | . . . . . . 2 Operator 1 | . . . . . . 1 Watcher 7 | . 2 . . . 4 1 Swarmer 8 | . 6 . . 2 . . Grunt 46 | . 8 . . 2 15 21 Brawler 2 | . . . . . . 2 Duelist 1 | . . . . . 1 . Sentry 10 | . . . . . 5 5 Hunter 1 | . . . . . 1 . Best Kill Streak 11 | . 3 1 . 2 11 8 Combat Bots Only 6 | . 3 . . 2 5 6 Max Kills in Single Turn 4 | . 2 1 . 1 2 4 Gunslinging 1 | . 1 . . . . . Exploded 2 | . . . . . 2 2 Melee . | . . . . . . . Uniques/NPCs Destroyed . | . . . . . . . Combat | -11 -10 -10 -10 -9 -8 -8 -------- Run | Yrd Mat Min Exi Min Mat Sto Hostile Shots Fired 400 | . 46 7 . 9 112 226 Missed 100 | . 12 4 . 3 29 52 Damage Taken 4649 | . 370 22 . 67 1346 2844 Core 659 | . 52 . . 43 144 420 Absorbed by Shields 190 | . . . . . . 190 Core Remaining (%) 81 | 100 . . . 62 . . Volleys Fired 257 | . 39 5 14 8 101 90 Largest 2 | . 2 2 2 2 2 2 Hottest 88 | . 70 40 50 70 88 88 Shots Fired 442 | . 78 10 18 16 165 155 Gun 265 | . 78 10 18 16 97 46 Cannon 142 | . . . . . 51 91 Launcher 34 | . . . . . 17 17 Special 1 | . . . . . . 1 Kinetic 335 | . 65 10 8 8 107 137 Thermal 72 | . 13 . 10 8 41 . Explosive 34 | . . . . . 17 17 Electromagnetic . | . . . . . . . Robot Hit Streak 18 | . 15 3 7 6 17 18 Robot Miss Streak 7 | . 4 5 1 3 4 7 Penetration Max . | . . . . . . . Secondary Targets 2 | . 1 . . 1 . . Max Gunslinging Chain 1 | . 1 . . 1 . . Shots Hit Robots 337 | . 57 4 34 10 112 120 Core Hits 262 | . 24 1 5 6 99 127 Critical Kills . | . . . . . . . Critical Parts Destroyed 1 | . . . . . 1 . Critical Strikes 4 | . . . . . 4 . Burn 3 | . . . . . 3 . Destroy 1 | . . . . . 1 . Melee Attacks 19 | . . . 19 . . . Impact . | . . . . . . . Slashing . | . . . . . . . Piercing . | . . . . . . . Sneak Attacks 6 | . . . 6 . . . Combat Hostiles 6 | . . . 6 . . . Follow-up Attacks . | . . . . . . . Damage Inflicted 7543 | . 746 44 160 127 2697 3769 Guns 2446 | . 746 44 160 123 821 552 Cannons 2519 | . . . . . 944 1575 Explosions 2568 | . . . . . 926 1642 Melee . | . . . . . . . Ramming 10 | . . . . 4 6 . Kinetic 4390 | . 607 44 61 86 1465 2127 Thermal 881 | . 139 . 99 37 606 . Explosive 2262 | . . . . . 620 1642 Electromagnetic . | . . . . . . . Impact . | . . . . . . . Slashing . | . . . . . . . Piercing . | . . . . . . . Highest Corruption 1 | . . . . . . 1 Average Corruption 1 | . . . . . . 1 Corruption Purged . | . . . . . . . Corruption Blocked . | . . . . . . . Effects 2 | . . . . . . 2 Matter Fused 1 | . . . . . . 1 Heat Flow Errors 1 | . . . . . . 1 Overload Shots . | . . . . . . . Overflow Damage 137 | . . . . . 69 68 Projectiles 1 | . . . . . . 1 Explosions 136 | . . . . . 69 67 Melee . | . . . . . . . Knockbacks 58 | . . . . . 26 32 Impact . | . . . . . . . Kinetic 53 | . . . . . 26 27 Secondary 5 | . . . . . . 5 Self-Inflicted Damage 309 | . . . . . 55 254 Shots 9 | . . . . . 1 8 Rammed 3 | . . . . 1 2 . Targets Rammed 3 | . . . . 1 2 . Kicked . | . . . . . . . Crushed . | . . . . . . . Highest Temperature 310 | . 52 . 90 27 310 281 Average Temperature 87 | . 23 . 43 13 88 104 Received Heat Transfer 1906 | . 132 . . 24 513 1237 Effects 6 | . . . . . . 6 Interference 6 | . . . . . . 6 Siege Activations . | . . . . . . . Robots Corrupted . | . . . . . . . Combat Hostiles . | . . . . . . . Parts Fried . | . . . . . . . Impact Corruptions . | . . . . . . . Robots Melted . | . . . . . . . Combat Hostiles . | . . . . . . . Parts Melted 4 | . 2 . . . 2 . Heat Transferred 2124 | . 407 . 296 111 1310 . Parts Sabotaged . | . . . . . . . Parts Stolen . | . . . . . . . Parts Stripped . | . . . . . . . Power Chain Reactions . | . . . . . . . Alert | -11 -10 -10 -10 -9 -8 -8 ------- Run | Yrd Mat Min Exi Min Mat Sto Peak Influence 752 | . 167 124 . 305 710 752 Initial 299 | . . 46 . . . 299 Average 189 | . 76 18 . 101 270 456 Maximum Alert Level 3 | . . . . 1 3 3 Low Security (%) 63 | 100 100 100 . 80 44 . Level 1 18 | . . . . 19 26 40 Level 2 17 | . . . . . 28 57 Level 3 . | . . . . . . 2 Level 4 . | . . . . . . . Level 5 . | . . . . . . . High Security . | . . . . . . . Max Security . | . . . . . . . Squads Dispatched 15 | . 3 . . . 4 8 Investigation 5 | . 2 . . . . 3 Extermination . | . . . . . . . Reinforcement 6 | . 1 . . . 2 3 Assault 3 | . . . . . 1 2 Garrison 1 | . . . . . 1 . Intercept . | . . . . . . . Searches Triggered . | . . . . . . . Construction Impeded 2 | . . . . . 1 1 Haulers Reinforced . | . . . . . . . Active Scanning Responses . | . . . . . . . Cargo Convoy Interrupts . | . . . . . . . Stealth | -11 -10 -10 -10 -9 -8 -8 --------- Run | Yrd Mat Min Exi Min Mat Sto Distress Signals 5 | . . . . . 4 1 Communications Jammed . | . . . . . . . Distress Signals . | . . . . . . . Times Spotted 119 | . 17 3 . 12 34 53 Peak Tracking Total 7 | . 3 3 . 3 4 7 Tactical Retreats 3 | . . . . . 1 2 Traps | -11 -10 -10 -10 -9 -8 -8 ------- Run | Yrd Mat Min Exi Min Mat Sto Traps Triggered 6 | . 4 . . . 1 1 Indirectly . | . . . . . . . Trap Hack Attempts . | . . . . . . . Triggered . | . . . . . . . Disarmed . | . . . . . . . Reprogrammed . | . . . . . . . Reused . | . . . . . . . Traps Extracted . | . . . . . . . Installed . | . . . . . . . Triggered . | . . . . . . . Machines | -11 -10 -10 -10 -9 -8 -8 ---------- Run | Yrd Mat Min Exi Min Mat Sto Machines Disabled 14 | . . . . . 9 5 Max in Single Turn 3 | . . . . . 3 2 Garrison Access 1 | . . . . . 1 . Machines Repaired . | . . . . . . . Machines Dismantled . | . . . . . . . Machines Sabotaged . | . . . . . . . Overloaded Fab Kills . | . . . . . . . Hacking | -11 -10 -10 -10 -9 -8 -8 --------- Run | Yrd Mat Min Exi Min Mat Sto Machines Accessed 18 | . 4 . 4 1 4 5 Terminals 11 | . 4 . . 1 3 3 Fabricators . | . . . . . . . Repair Stations 1 | . . . . . . 1 Recycling Units 2 | . . . . . 1 1 Scanalyzers . | . . . . . . . Garrison Access . | . . . . . . . Total Hacks 66 | . 14 . 26 3 11 12 Successful 40 | . 7 . 26 2 2 3 Failed 25 | . 6 . . 1 9 9 Catastrophic 5 | . 1 . . 1 2 1 Database Lockouts 1 | . 1 . . . . . Manual 22 | . 11 . 2 2 6 1 Terminals 31 | . 14 . . 3 9 5 Fabricators . | . . . . . . . Repair Stations 3 | . . . . . . 3 Recycling Units 6 | . . . . . 2 4 Scanalyzers . | . . . . . . . Garrison Access . | . . . . . . . Terminal Hacks 39 | . 7 . 26 2 2 2 Record 27 | . 1 . 25 1 . . Robot Analysis 1 | . 1 . . . . . Prototype ID Bank 5 | . 3 . . 1 1 . Open Door 2 | . . . . . . 2 Recall Investigation 1 | . 1 . . . . . Hauler Manifests 1 | . 1 . . . . . Zone Layout 1 | . . . . . 1 . Derelict Proto ID Bank 1 | . . . 1 . . . Fabricator Hacks . | . . . . . . . Repair Station Hacks 1 | . . . . . . 1 Scan Component 1 | . . . . . . 1 Recycling Unit Hacks . | . . . . . . . Scanalyzer . | . . . . . . . Garrison Access Hacks . | . . . . . . . Unauthorized Hacks . | . . . . . . . Terminals . | . . . . . . . Fabricators . | . . . . . . . Repair Stations . | . . . . . . . Recycling Units . | . . . . . . . Scanalyzers . | . . . . . . . Garrison Access . | . . . . . . . Data Cores Recovered . | . . . . . . . Used . | . . . . . . . Hacking Detections 12 | . 4 . . 1 4 3 Full Trace Events 4 | . 1 . . . . 3 Feedback Events . | . . . . . . . Feedback Blocked . | . . . . . . . Robot Schematics Acquired . | . . . . . . . Robots Built . | . . . . . . . Authchips . | . . . . . . . Time . | . . . . . . . Total Robot Build Rating . | . . . . . . . Part Schematics Acquired . | . . . . . . . Parts Built . | . . . . . . . Authchips . | . . . . . . . Time . | . . . . . . . Total Part Build Rating . | . . . . . . . Parts Repaired . | . . . . . . . Time . | . . . . . . . Parts Recycled . | . . . . . . . Recycled Matter . | . . . . . . . Retrieved Matter . | . . . . . . . Retrieved Components . | . . . . . . . Parts Scanalyzed . | . . . . . . . Part Schematics Acquired . | . . . . . . . Parts Damaged . | . . . . . . . Bothacking | -11 -10 -10 -10 -9 -8 -8 ------------ Run | Yrd Mat Min Exi Min Mat Sto Used RIF Installer . | . . . . . . . Robots Hacked . | . . . . . . . Non-combat . | . . . . . . . Combat . | . . . . . . . Robot Hacks Applied . | . . . . . . . Relay Couplers Released 2 | . . . . . 2 . Machine Destruction 2 | . . . . . 2 . Fabnet Peak Effective % . | . . . . . . . Robots Rewired 4 | . . . 4 . . . Allies Hacked . | . . . . . . . Hacks Repelled . | . . . . . . . Allies | -11 -10 -10 -10 -9 -8 -8 -------- Run | Yrd Mat Min Exi Min Mat Sto Total Allies 10 | . . 2 4 1 . 3 Largest Group 4 | . . 2 4 4 4 2 Highest-Rated Group 62 | . . 48 32 55 55 62 Highest-Rated Ally 31 | . . 31 31 31 31 31 Total Orders . | . . . . . . . Ally Attacks 69 | . . 11 . 38 7 13 Total Damage 690 | . . 83 . 323 57 227 Kills 12 | . . 3 . 7 1 1 Allies Corrupted . | . . . . . . . Allies Melted . | . . . . . . . Field Lobotomies 1 | . . . . . . 1 Intel | -11 -10 -10 -10 -9 -8 -8 ------- Run | Yrd Mat Min Exi Min Mat Sto Robot Analysis Total 1 | . 1 . . . . . Derelict Logs Recovered 4 | . . 2 . 2 . . Drone Launches . | . . . . . . . Drone Recoveries . | . . . . . . . Exploration | -11 -10 -10 -10 -9 -8 -8 ------------- Run | Yrd Mat Min Exi Min Mat Sto Turns Passed 8136 | 70 1097 1270 1551 1327 1521 1300 Spaces Moved 4043 | 53 539 709 924 742 605 471 Core 31 | 26 . . . . . 5 Treads 4012 | 27 539 709 924 742 605 466 Legs . | . . . . . . . Wheels . | . . . . . . . Hover . | . . . . . . . Flight . | . . . . . . . Fastest Speed 50 | 50 160 160 160 160 148 150 Average Speed 162 | 109 160 160 160 160 151 197 Slowest Speed 1850 | 160 160 160 160 160 160 1850 Overloaded Moves . | . . . . . . . Propulsion Burnouts . | . . . . . . . Robots Hopped . | . . . . . . . Cave-ins Triggered . | . . . . . . . Exploration Rate (%) 66 | 3 81 98 93 101 38 52 Regions Visited 6 Branch Regions 4 Pre-discovered Areas 2 | . . 1 1 . . . Known Exits Taken 1 | . . . . . 1 . Unknown Exits Taken 5 | 1 1 1 1 1 . . Scrap Searched 3 | . . 1 . 2 . . Spaces Dug 6 | . . . . . 6 . Terrain Destroyed 230 | . . . . . 101 129 Melee . | . . . . . . . Projectile . | . . . . . . . AOE 230 | . . . . . 101 129 Terrain Rammed . | . . . . . . . Walls Destroyed . | . . . . . . . Machines Disabled . | . . . . . . . Actions | -11 -10 -10 -10 -9 -8 -8 --------- Run | Yrd Mat Min Exi Min Mat Sto Total 5174 | 63 696 835 968 867 1049 696 Wait 666 | . 95 121 . 108 264 78 Move 4037 | 52 538 708 923 741 604 471 Hop . | . . . . . . . Pick Up 76 | 5 14 1 5 3 25 23 Fast Attach 5 | 3 . . . . 2 . Attach 31 | 3 5 . . . 10 13 Detach 3 | . . . . . 3 . Swap 39 | . 2 . 4 2 17 14 Drop 36 | . 3 . 1 4 21 7 Fire 257 | . 39 5 14 8 101 90 Melee 19 | . . . 19 . . . Ram . | . . . . . . . Kick . | . . . . . . . Crush 3 | . . . . 1 2 . Escape Stasis . | . . . . . . . Rewire 2 | . . . 2 . . . Trap . | . . . . . . . Miscellaneous . | . . . . . . . Route ------- -11/Scrapyard -10/Materials (discovered 4 exits: [*Mat x2] / [*Min x2]) -10/Mines (discovered 4 exits: [*Mat x2] / *Exi / Sub) -10/Exiles (discovered 2 exits: *Min x2) -9/Mines (discovered 2 exits: *Mat x2) -8/Materials -8/Storage History --------- Turn | Location | Event 4 | -11/Scrapyard | Discovered new exit (range 15) 71 | -11/Scrapyard | Entered Materials 314 | -10/Materials | Build established: Mutant 391 | -10/Materials | Discovered new exit (range 16) 631 | -10/Materials | Discovered new exit (range 9) 802 | -10/Materials | Discovered new exit (range 10) 951 | -10/Materials | Discovered new exit (range 16) 1047 | -10/Materials | Central database locked down 1168 | -10/Materials | Entered Mines 1179 | -10/Mines | Met a Derelict bent on vengeance 1404 | -10/Mines | Identified exit to Subcaves 1562 | -10/Mines | Learned location of Zion (-6) 1642 | -10/Mines | Deemed a non-threat by the Exiles lab entrance 1642 | -10/Mines | Discovered new exit (range 5) 1741 | -10/Mines | Discovered new exit (range 7) 2313 | -10/Mines | Discovered new exit (range 12) 2438 | -10/Mines | Entered Exiles 2438 | -10/Exiles | Found Exiles lab destroyed 2438 | -10/Exiles | Accompanied by 1 ally 2468 | -10/Exiles | Led the pair of lost Derelicts to a safe place 2687 | -10/Exiles | Opened EX-Vault 2692 | -10/Exiles | Found Prototype Special Weapon 2694 | -10/Exiles | Identified Field Lobotomy Kit 3222 | -10/Exiles | Discovered new exit (range 12) 3423 | -10/Exiles | Discovered new exit (range 15) 3686 | -10/Exiles | Build established: Commander-Mutant 3989 | -10/Exiles | Entered Mines 3989 | -9/Mines | Accompanied by 4 allies 4091 | -9/Mines | Discovered new exit (range 14) 4167 | -9/Mines | Found a damaged Exp. Sensor Array with a note attached 4171 | -9/Mines | Found Prototype Device 4196 | -9/Mines | Learned Materials emergency access door positions 4298 | -9/Mines | Build established: Mutant 5092 | -9/Mines | Discovered new exit (range 11) 5116 | -9/Mines | Learned Materials emergency access door positions 5177 | -9/Mines | Found a hidden stash of uninstalled traps 5188 | -9/Mines | Received a Mining Laser from a helpful Derelict 5316 | -9/Mines | Entered Materials 5316 | -8/Materials | Accompanied by 4 allies 5316 | -8/Materials | Evolved 4 slots: Propulsion x2, Utility x2 5322 | -8/Materials | Identified Exp. Sensor Array 6622 | -8/Materials | Discovered new exit (range 15) 6707 | -8/Materials | Identified exit to Storage 6837 | -8/Materials | Entered Storage 7229 | -8/Storage | Lost 5 parts (1p1n2u1w) 7291 | -8/Storage | Assimilated G-47 Trooper with FLK Orb 7459 | -8/Storage | Build established: Scavenger-Mutant 7583 | -8/Storage | Met a pair of Derelict thieves 7742 | -8/Storage | Core integrity fell below 50% 7774 | -8/Storage | Lost 5 parts (3n1u1w) 8130 | -8/Storage | Released all parts (3) 8132 | -8/Storage | Core integrity fell below 20% 8137 | -8/Storage | Destroyed by G-47 Trooper with Particle Gun Last Messages --------------- 08127_ Critical hit (Burn: +37). 08128_ U-05 Engineer lays Concrete. 08128_ Rocket Launcher destroyed. 08129_ U-05 Engineer lays Concrete. 08130_ Released Hrd. Medium Armor Plating. 08130_ Released Signal Interpreter. 08130_ Released Huge Storage Unit. 08130_ R-06 Scavenger collects Imp. Light Armor Plating. 08131_ Penetrated by Slug. 08131_ U-05 Engineer lays Concrete. 08133_ System corrupted: Matter fused (-9). 08133_ U-05 Engineer lays Concrete. 08133_ R-06 Scavenger collects Med. Storage Unit. 08134_ Penetrated by Slug. 08134_ U-05 Engineer lays Concrete. 08136_ R-06 Scavenger collects Lgt. Nuclear Core. 08137_ Critical hit (Burn: +37). Map ----- +----------------------------------------------------+ | # T#??????????????????????????????????????????? | | + ##??????????????????????????????????????????? | | # ###???????????????????????????????????????????? | | ## ##???????????????????????????????????????????? | | # ####????????????????????????????????????????? | | #????????????????????????????????????????? | | * #????????????????????????????????????????? | | %= #????????????????????????????????????????? | | /########????????????????????????????????????????? | | #????????????????????????????????????????????? | | #???????????????????? #????????????????????? | | #???????????????????? a#????????????????????? | | #???????????????????? #????????????????????? | | #???????????????????? #????????????????????? | | #???????????????????? #????????????????????? | | #???????????????????? k #????????????????????? | | #???????????????????? #????????????????????? | | #???????????????????+ #????????????????????? | | #???????????????????#a #????????????????????? | | #??##"""#???????????# #????????????????????? | | #??#T #???????????# #????????????????????? | | #+####### #####??????## ##???"#???? ?????????? | | ######+#############g ##"T"# ?????????? | | r *[ h #???????????? | | ^^ !! T #???????????? | | a ^ g*!!!@ #???????????? | | ##############+#!!!#Y ###### #???????????? | | ##### # ## %=!!Y##+###???????????????????? | | ????##### # = % =! ! #?????????????????? | | ????????##### !! % / ??????????????? | | ??????????#"" " = u% !### ??????????????? | | ??????????#"T "" [% #?????????????????? | | ??????????#"" "" ! #?????????????????? | | ??????????### = #????????????????? | | ????????????# # ???????????????? | | ????????????####### ### # ???????????????? | | ??????????????????###?? #????????????????? | | ???????????????????????#### #????????????????? | | ???????????????????????????# # ?????????????????? | | ????????????????????????????##???????????????????? | | ?????????????????????????????????????????????????? | | ?????????????????????????????????????????????????? | | ?????????????????????????????????????????????????? | | ?????????????????????????????????????????????????? | | ?????????????????????????????????????????????????? | | ?????????????????????????????????????????????????? | | | | | | | | | +----------------------------------------------------+ Best States ------------- Heat Dissipation 31 Energy Generation 14 Energy Capacity 280 Matter Stores 300 Matter Capacity 300 Sight Range 16 Robot Scan Range 20 Terrain Scan Density 10 Armor Coverage 450 Utility Shielding 66 Evasion (%) 50 Targeting Accuracy 8 Recoil Reduction 4 Item Schematics ----------------- None Robot Schematics ------------------ None Fabricated ------------ Nothing Alien Tech Used ----------------- None Achievements -------------- None Challenges ------------ None Game ------ Seed LegThiefScythe Manual? 0 Play Time 01:29:48 Cumulative 37.7 hours Start 2024.09.05 @ 13:30:02 End 2025.05.01 @ 20:09:39 Sessions 7 Manual Loads 0 Difficulty Rogue Special Mode None Game No. 35 Rogue 31 Adventurer 4 Explorer 0 Win Type - Total 0 Types 0/0/0/0/0/0/0/0/0 Lore% 11 Gallery% 24 Achievement% 23 Wizard Run 0 Options --------- Layout 1 ASCII 0 Keyboard 0 Movement Mouse Keybinds 0 Fullscreen 1 Font 32/SmallcapsGlow Map View 50x35 Zoom Use 0% Tactical HUD 1 Map Filters NONE Filters NONE Steam 1 RUN: 6ad97aba-6a8e-457a-bc8e-01ed85bce007